[Event "13th Poti Nana Aleksandria Cup"]
[Site "Poti"]
[Date "2018.07.14"]
[Round "2"]
[White "Benidze, Davit"]
[Black "Gharagyozyan, Artur"]
[Result "1-0"]
[ECO "A04"]
[WhiteElo "2487"]
[BlackElo "2302"]
[Annotator "ChessBase"]
[PlyCount "94"]
[EventDate "2018.07.13"]
[EventType "swiss"]
[EventCountry "GEO"]
[SourceTitle "playchess.com"]
[Source "ChessBase"]
[SourceQuality "1"]
[TimeControl "40/5400+30:1800+30"]

1. Nf3 {[%emt 0:00:00]} c5 {[%emt 0:02:30]} 2. g3 {[%emt 0:00:00]} b6 {[%emt 0:00:28]} 3. Bg2 {[%emt 0:00:00]} Bb7 {[%emt 0:00:03]} 4. O-O {[%emt 0:00:00]} Nf6 {[%emt 0:00:02]} 5. c4 {[%emt 0:00:00]} g6 {[%emt 0:00:10]} 6. d4 {[%emt 0:01:22]} cxd4 {[%emt 0:00:05]} 7. Qxd4 {[%emt 0:00:04]} Bg7 {[%emt 0:00:08]} 8. Nc3 {[%emt 0:00:05]} O-O {[%emt 0:00:05]} 9. Qh4 {[%emt 0:00:02]} d6 {[%emt 0:00:08]} 10. Be3 {[%emt 0:04:46]} Nbd7 {[%emt 0:00:26]} 11. Rfd1 {[%emt 0:00:06]} Rc8 {[%emt 0:00:32]} 12. Rac1 {[%emt 0:00:08]} a6 {[%emt 0:04:19]} 13. b3 {[%emt 0:00:49]} Re8 {[%emt 0:01:19]} 14. Bh3 {[%emt 0:03:15]} Rc7 {[%emt 0:08:14]} 15. g4 {[%emt 0:07:19]} Qb8 {[%emt 0:12:19]} 16. g5 {[%emt 0:00:37]} Bxf3 {[%emt 0:00:12]} 17. exf3 {[%emt 0:00:16]} Ne5 {[%emt 0:02:37]} 18. Qg3 {[%emt 0:06:29]} Nh5 {[%emt 0:03:35]} 19. Qg2 {[%emt 0:00:09]} b5 {[%emt 0:11:15]} 20. f4 {[%emt 0:05:01]} Nd7 {[%emt 0:10:11]} 21. Nd5 {[%emt 0:00:10]} Rb7 {[%emt 0:00:12]} 22. cxb5 {[%emt 0:00:02]} axb5 {[%emt 0:00:27]} 23. Bg4 {[%emt 0:00:02]} e6 {[%emt 0:02:04]} 24. Bxh5 {[%emt 0:00:22]} exd5 {[%emt 0:02:10]} 25. Bf3 {[%emt 0:00:02]} Nb6 {[%emt 0:04:12]} 26. Bxd5 {[%emt 0:00:05]} Nxd5 {[%emt 0:01:52]} 27. Qxd5 {[%emt 0:00:08]} Bf8 {[%emt 0:00:25]} 28. a4 {[%emt 0:10:29]} bxa4 {[%emt 0:00:58]} 29. bxa4 {[%emt 0:00:04]} Rb4 {[%emt 0:01:20]} 30. Rd4 {[%emt 0:03:53]} Rb3 {[%emt 0:03:36]} 31. Rdc4 {[%emt 0:03:11]} Rb7 {[%emt 0:11:18]} 32. Kg2 {[%emt 0:06:19]} Qa8 {[%emt 0:00:11]} 33. Kg3 {[%emt 0:06:16]} h5 {[%emt 0:04:44]} 34. a5 {[%emt 0:01:30]} Qb8 {[%emt 0:05:41]} 35. Bb6 {[%emt 0:03:31]} h4+ {[%emt 0:03:22]} 36. Kf3 {[%emt 0:02:02]} Qa8 {[%emt 0:01:01]} 37. R1c3 {[%emt 0:03:25]} Qa6 {[%emt 0:00:32]} 38. Re3 {[%emt 0:01:40]} Rbe7 {[%emt 0:01:05]} 39. Rxe7 {[%emt 0:00:34]} Rxe7 {[%emt 0:00:06]} 40. Kg4 {[%emt 0:00:00]} Rb7 {[%emt 0:00:00]} 41. Kxh4 {[%emt 0:01:15]} Re7 {[%emt 0:05:11]} 42. Kg3 {[%emt 0:02:00]} Rb7 {[%emt 0:07:14]} 43. h3 {[%emt 0:05:04]} Re7 {[%emt 0:00:02]} 44. Be3 {[%emt 0:00:46]} Re6 {[%emt 0:01:54]} 45. Kg2 {[%emt 0:02:57]} Be7 {[%emt 0:01:32]} 46. Rc6 {[%emt 0:01:26]} Qe2 {[%emt 0:01:52]} 47. Rc8+ {[%emt 0:00:26]} Kh7 {[%emt 0:02:01]} 1-0

[Event "13th Poti Nana Aleksandria Cup"]
[Site "Poti"]
[Date "2018.07.14"]
[Round "2"]
[White "Tutisani, Noe"]
[Black "Der Manuelian, Haik"]
[Result "1-0"]
[ECO "D31"]
[WhiteElo "2469"]
[BlackElo "2242"]
[Annotator "ChessBase"]
[PlyCount "132"]
[EventDate "2018.07.13"]
[EventType "swiss"]
[EventCountry "GEO"]
[SourceTitle "playchess.com"]
[Source "ChessBase"]
[SourceQuality "1"]
[TimeControl "40/5400+30:1800+30"]

1. d4 {[%emt 0:00:00]} d5 {[%emt 0:00:00]} 2. c4 {[%emt 0:00:00]} e6 {[%emt 0:00:01]} 3. Nc3 {[%emt 0:00:00]} Be7 {[%emt 0:00:04]} 4. cxd5 {[%emt 0:00:00]} exd5 {[%emt 0:00:07]} 5. Bf4 {[%emt 0:00:00]} c6 {[%emt 0:00:05]} 6. e3 {[%emt 0:00:02]} Bf5 {[%emt 0:00:07]} 7. f3 {[%emt 0:00:04]} g5 {[%emt 0:18:58]} 8. Be5 {[%emt 0:03:14]} Bf6 {[%emt 0:00:47]} 9. Bd3 {[%emt 0:00:33]} Bxd3 {[%emt 0:02:23]} 10. Qxd3 {[%emt 0:00:32]} Bxe5 {[%emt 0:05:12]} 11. dxe5 {[%emt 0:00:07]} Qe7 {[%emt 0:05:43]} 12. Qd4 {[%emt 0:00:17]} f6 {[%emt 0:00:31]} 13. exf6 {[%emt 0:00:41]} Qxf6 {[%emt 0:01:38]} 14. Qa4 {[%emt 0:01:37]} Nd7 {[%emt 0:05:32]} 15. Nge2 {[%emt 0:05:57]} Nb6 {[%emt 0:04:19]} 16. Qd4 {[%emt 0:02:30]} O-O-O {[%emt 0:09:29]} 17. h4 {[%emt 0:03:04]} Qxd4 {[%emt 0:07:55]} 18. exd4 {[%emt 0:00:20]} gxh4 {[%emt 0:04:12]} 19. b3 {[%emt 0:00:51]} Ne7 {[%emt 0:13:11]} 20. Rxh4 {[%emt 0:00:14]} h5 {[%emt 0:00:45]} 21. Ng3 {[%emt 0:01:54]} Rdg8 {[%emt 0:05:27]} 22. Nce2 {[%emt 0:00:56]} Rg5 {[%emt 0:01:05]} 23. Kf2 {[%emt 0:07:38]} Ng6 {[%emt 0:00:17]} 24. Rh2 {[%emt 0:00:05]} h4 {[%emt 0:01:13]} 25. Nf1 {[%emt 0:00:04]} Nd7 {[%emt 0:01:59]} 26. Ne3 {[%emt 0:01:23]} Nf6 {[%emt 0:00:58]} 27. Rh3 {[%emt 0:05:25]} Nh5 {[%emt 0:01:02]} 28. Rah1 {[%emt 0:03:18]} Re8 {[%emt 0:00:26]} 29. Ng4 {[%emt 0:06:19]} Rf5 {[%emt 0:02:48]} 30. Re1 {[%emt 0:02:24]} Rh8 {[%emt 0:04:11]} 31. Ne3 {[%emt 0:04:27]} Rff8 {[%emt 0:00:35]} 32. Reh1 {[%emt 0:01:07]} Nhf4 {[%emt 0:00:49]} 33. Nxf4 {[%emt 0:00:43]} Rxf4 {[%emt 0:00:02]} 34. Nc2 {[%emt 0:01:24]} Kd7 {[%emt 0:00:32]} 35. Rg1 {[%emt 0:05:34]} Ne7 {[%emt 0:02:03]} 36. Ke3 {[%emt 0:03:50]} Rff8 {[%emt 0:00:01]} 37. Kd3 {[%emt 0:00:50]} Ng6 {[%emt 0:01:48]} 38. Rh2 {[%emt 0:00:04]} h3 {[%emt 0:00:58]} 39. Kd2 {[%emt 0:00:40]} hxg2 {[%emt 0:00:45]} 40. Rxh8 {[%emt 0:00:00]} Nxh8 {[%emt 0:00:00]} 41. Ne1 {[%emt 0:00:06]} Ke6 {[%emt 0:05:33]} 42. Rxg2 {[%emt 0:00:32]} Kf6 {[%emt 0:00:13]} 43. Nd3 {[%emt 0:00:20]} Ng6 {[%emt 0:00:05]} 44. Rh2 {[%emt 0:00:24]} Rf7 {[%emt 0:01:32]} 45. Rh6 {[%emt 0:02:51]} Rg7 {[%emt 0:07:07]} 46. b4 {[%emt 0:09:00]} Kg5 {[%emt 0:01:19]} 47. Rh1 {[%emt 0:00:25]} Re7 {[%emt 0:00:51]} 48. a4 {[%emt 0:00:32]} Kf5 {[%emt 0:06:10]} 49. Rh5+ {[%emt 0:02:34]} Kf6 {[%emt 0:00:10]} 50. b5 {[%emt 0:00:22]} Rg7 {[%emt 0:02:51]} 51. bxc6 {[%emt 0:00:50]} bxc6 {[%emt 0:00:00]} 52. Nb4 {[%emt 0:03:37]} Ne7 {[%emt 0:00:41]} 53. Rh6+ {[%emt 0:00:16]} Kf5 {[%emt 0:01:20]} 54. Nxc6 {[%emt 0:02:01]} Nxc6 {[%emt 0:00:06]} 55. Rxc6 {[%emt 0:00:04]} Rg2+ {[%emt 0:00:19]} 56. Kc3 {[%emt 0:05:44]} Rf2 {[%emt 0:00:32]} 57. Kb4 {[%emt 0:00:29]} Rxf3 {[%emt 0:00:03]} 58. Rc1 {[%emt 0:00:43]} Ke6 {[%emt 0:01:39]} 59. Rh1 {[%emt 0:02:38]} a5+ {[%emt 0:05:20]} 60. Kxa5 {[%emt 0:00:46]} Rf4 {[%emt 0:02:54]} 61. Rd1 {[%emt 0:01:23]} Kd6 {[%emt 0:00:03]} 62. Kb4 {[%emt 0:01:05]} Rf8 {[%emt 0:01:57]} 63. a5 {[%emt 0:00:48]} Rb8+ {[%emt 0:00:04]} 64. Kc3 {[%emt 0:00:29]} Rc8+ {[%emt 0:01:25]} 65. Kd3 {[%emt 0:00:39]} Rh8 {[%emt 0:00:43]} 66. Kc3 {[%emt 0:02:48]} Rc8+ {[%emt 0:00:33]} 1-0

[Event "13th Poti Nana Aleksandria Cup"]
[Site "Poti"]
[Date "2018.07.14"]
[Round "2"]
[White "Hayrapetyan, Hovik"]
[Black "Ghvamberia, Nika"]
[Result "1/2-1/2"]
[WhiteElo "2453"]
[BlackElo "2236"]
[Annotator "ChessBase"]
[PlyCount "124"]
[EventDate "2018.07.13"]
[EventType "swiss"]
[EventCountry "GEO"]
[SourceTitle "playchess.com"]
[Source "ChessBase"]
[SourceQuality "1"]
[TimeControl "40/5400+30:1800+30"]

1. Nf3 {[%emt 0:00:03]} Nf6 {[%emt 0:02:41]} 2. c4 {[%emt 0:00:09]} e6 {[%emt 0:00:29]} 3. b3 {[%emt 0:01:09]} b6 {[%emt 0:00:48]} 4. g3 {[%emt 0:00:53]} Bb7 {[%emt 0:00:24]} 5. Bg2 {[%emt 0:00:08]} c5 {[%emt 0:01:49]} 6. O-O {[%emt 0:00:37]} Be7 {[%emt 0:00:04]} 7. Bb2 {[%emt 0:02:05]} O-O {[%emt 0:02:04]} 8. d4 {[%emt 0:03:25]} cxd4 {[%emt 0:01:12]} 9. Qxd4 {[%emt 0:00:37]} Nc6 {[%emt 0:06:21]} 10. Qf4 {[%emt 0:01:41]} Qb8 {[%emt 0:07:39]} 11. Qxb8 {[%emt 0:05:07]} Raxb8 {[%emt 0:00:22]} 12. Nc3 {[%emt 0:00:02]} Rfd8 {[%emt 0:02:13]} 13. Rfd1 {[%emt 0:07:14]} a6 {[%emt 0:03:41]} 14. Rd2 {[%emt 0:03:52]} Bb4 {[%emt 0:16:06]} 15. Rd3 {[%emt 0:12:11]} d5 {[%emt 0:10:35]} 16. cxd5 {[%emt 0:00:49]} Bxc3 {[%emt 0:00:06]} 17. Rxc3 {[%emt 0:01:38]} Nxd5 {[%emt 0:00:08]} 18. Rc4 {[%emt 0:05:59]} f6 {[%emt 0:05:01]} 19. Nd4 {[%emt 0:05:10]} Nxd4 {[%emt 0:03:04]} 20. Rxd4 {[%emt 0:00:44]} Rdc8 {[%emt 0:07:25]} 21. Bh3 {[%emt 0:03:14]} f5 {[%emt 0:04:38]} 22. e4 {[%emt 0:02:45]} Nf6 {[%emt 0:02:40]} 23. exf5 {[%emt 0:01:17]} Rc2 {[%emt 0:00:23]} 24. Ba3 {[%emt 0:10:23]} e5 {[%emt 0:00:05]} 25. Rd6 {[%emt 0:03:25]} Bf3 {[%emt 0:01:31]} 26. Rc1 {[%emt 0:04:58]} Rxc1+ {[%emt 0:07:32]} 27. Bxc1 {[%emt 0:00:04]} Rc8 {[%emt 0:00:01]} 28. Be3 {[%emt 0:03:40]} Rc2 {[%emt 0:05:15]} 29. Bg2 {[%emt 0:04:14]} e4 {[%emt 0:00:21]} 30. h3 {[%emt 0:00:35]} Rxa2 {[%emt 0:00:05]} 31. Bxb6 {[%emt 0:01:33]} Rb2 {[%emt 0:03:06]} 32. Bd4 {[%emt 0:04:33]} Rxb3 {[%emt 0:00:36]} 33. Rxa6 {[%emt 0:02:39]} h5 {[%emt 0:03:07]} 34. Bxf6 {[%emt 0:00:54]} gxf6 {[%emt 0:00:02]} 35. Rxf6 {[%emt 0:00:05]} Rb1+ {[%emt 0:00:32]} 36. Kh2 {[%emt 0:00:05]} Rb2 {[%emt 0:00:03]} 37. Bxf3 {[%emt 0:00:08]} exf3 {[%emt 0:00:05]} 38. g4 {[%emt 0:00:35]} h4 {[%emt 0:02:02]} 39. Rh6 {[%emt 0:01:22]} Rxf2+ {[%emt 0:00:06]} 40. Kg1 {[%emt 0:00:00]} Rg2+ {[%emt 0:00:00]} 41. Kf1 {[%emt 0:00:04]} Kg7 {[%emt 0:00:20]} 42. Rxh4 {[%emt 0:00:05]} Kf6 {[%emt 0:00:06]} 43. Rh8 {[%emt 0:00:33]} Kg5 {[%emt 0:05:15]} 44. f6 {[%emt 0:00:38]} Kxf6 {[%emt 0:01:24]} 45. Rf8+ {[%emt 0:00:09]} Kg5 {[%emt 0:00:03]} 46. Rxf3 {[%emt 0:00:09]} Rh2 {[%emt 0:02:34]} 47. Rf5+ {[%emt 0:03:32]} Kh4 {[%emt 0:00:15]} 48. Rh5+ {[%emt 0:00:08]} Kg3 {[%emt 0:00:07]} 49. Ke1 {[%emt 0:00:43]} Kf3 {[%emt 0:01:51]} 50. Kd1 {[%emt 0:03:02]} Ke3 {[%emt 0:01:51]} 51. Rb5 {[%emt 0:03:01]} Kf4 {[%emt 0:04:44]} 52. Rb3 {[%emt 0:03:32]} Kg5 {[%emt 0:00:25]} 53. Kc1 {[%emt 0:01:23]} Kh4 {[%emt 0:01:05]} 54. Rd3 {[%emt 0:01:48]} Rg2 {[%emt 0:01:04]} 55. Kd1 {[%emt 0:01:02]} Rh2 {[%emt 0:01:09]} 56. Ke1 {[%emt 0:00:05]} Rg2 {[%emt 0:00:11]} 57. Kf1 {[%emt 0:01:08]} Rh2 {[%emt 0:01:17]} 58. Re3 {[%emt 0:03:09]} Ra2 {[%emt 0:01:27]} 59. Kg1 {[%emt 0:00:19]} Rb2 {[%emt 0:00:25]} 60. Rf3 {[%emt 0:01:15]} Ra2 {[%emt 0:00:07]} 61. Kf1 {[%emt 0:00:13]} Rh2 {[%emt 0:01:19]} 62. Re3 {[%emt 0:00:38]} Ra2 {[%emt 0:01:08]} 1/2-1/2

[Event "13th Poti Nana Aleksandria Cup"]
[Site "Poti"]
[Date "2018.07.14"]
[Round "2"]
[White "Arabidze, Meri"]
[Black "Tsotsonava, Elene"]
[Result "1-0"]
[ECO "E20"]
[WhiteElo "2397"]
[BlackElo "1647"]
[Annotator "NA"]
[PlyCount "81"]
[EventDate "2018.07.13"]
[EventType "swiss"]
[EventCountry "GEO"]
[SourceTitle "playchess.com"]
[Source "ChessBase"]
[SourceQuality "1"]
[TimeControl "40/5400+30:1800+30"]

1. d4 {[%emt 0:00:00]} Nf6 {[%emt 0:00:00]} 2. c4 {[%emt 0:00:00]} e6 {[%emt 0:00:00]} 3. Nc3 {[%emt 0:00:00]} Bb4 {[%emt 0:00:00]} 4. f3 {[%emt 0:00:00]} c5 {[%emt 0:00:24]} 5. d5 {[%emt 0:00:00]} Bxc3+ {[%emt 0:00:08]} ({Better is} 5... O-O $11) 6. bxc3 {[%emt 0:00:00]} d6 {[%emt 0:00:13]} 7. e4 {[%emt 0:00:41]} e5 {[%emt 0:01:57]} 8. Bd3 {[%emt 0:00:04]} Nbd7 {[%emt 0:00:46]} 9. Ne2 {[%emt 0:00:07]} Nf8 {[%emt 0:11:46]} 10. h4 {[%emt 0:00:11]} h5 {[%emt 0:00:19] LiveBook: 10 Games E20: Nimzo-Indian: 4 g3 and 4 f3} 11. Ng3 {[%emt 0:00:36]} (11. Qa4+ Bd7 12. Qa3 Qc7 13. Bc2 Kd8 14. Rb1 Ng8 15. Ng3 Bc8 16. Rb2 f6 17. Be3 g6 18. Bd3 {1-0 (84) Volkov,S (2636)-Javakhishvili,L (2461) Banja Luka 2008}) 11... Ng6 $146 {[%emt 0:03:01]} ({Predecessor:} 11... Qa5 12. Qc2 Ng6 13. Kf2 Qc7 14. a4 Bd7 15. Nf5 Kf8 16. Re1 Re8 17. Rb1 Bc8 18. Kg1 {½-½ (70) Morrow,W (2296)-Ramik,J (2327) ICCF email 2012}) 12. Nf5 {[%emt 0:00:16]} Bxf5 {[%emt 0:03:36]} 13. exf5 {[%emt 0:00:05]} Ne7 {[%emt 0:00:30]} 14. Bg5 {[%emt 0:00:30]} Qd7 {[%emt 0:00:30]} 15. Qc2 {[%emt 0:00:30]} O-O-O {[%emt 0:26:43]} 16. a4 {[%emt 0:12:39]} Qe8 {[%emt 0:00:30]} 17. a5 {[%emt 0:08:05]} Nd7 {[%emt 0:15:04]} 18. Rb1 {[%emt 0:14:33]} Nf8 {[%emt 0:05:12]} 19. f6 {[%emt 0:09:45]} gxf6 {[%emt 0:03:17]} 20. Bxf6 {[%emt 0:00:06]} Rg8 {[%emt 0:00:36]} 21. Kf2 {[%emt 0:01:43]} Nfg6 {[%emt 0:02:59]} 22. g3 {[%emt 0:00:53]} Qd7 {[%emt 0:02:10]} 23. Rb2 {[%emt 0:03:50]} e4 {[%emt 0:08:48]} 24. Bxe4 {[%emt 0:03:16]} Ne5 {[%emt 0:00:11]} 25. Bxe7 {[%emt 0:05:56]} Qxe7 {[%emt 0:00:32]} 26. Rhb1 {[%emt 0:00:13]} Rg7 $18 {[%emt 0:07:15]} 27. Bf5+ {[%emt 0:09:55]} Kb8 {[%emt 0:00:30]} 28. Rxb7+ {[%emt 0:00:30]} Qxb7 {[%emt 0:00:30]} 29. Rxb7+ Kxb7 {[%emt 0:00:00]} 30. Qa4 {[%emt 0:06:39]} f6 {[%emt 0:04:11]} 31. f4 {[%emt 0:04:24]} Ng4+ {[%emt 0:00:47]} 32. Kf3 {[%emt 0:01:32]} Nh6 {[%emt 0:01:42]} 33. Bg6 {[%emt 0:03:41]} Re7 {[%emt 0:01:35]} 34. Bxh5 {[%emt 0:01:45]} Nf5 {[%emt 0:00:44]} 35. Bg6 {[%emt 0:01:14]} Nh6 {[%emt 0:00:24]} 36. g4 {[%emt 0:00:49]} Rg7 {[%emt 0:00:25]} 37. a6+ {[%emt 0:01:24]} Kb8 {[%emt 0:00:32]} 38. g5 {[%emt 0:00:30]} fxg5 {[%emt 0:00:13]} 39. hxg5 {[%emt 0:00:11]} Ng8 {[%emt 0:00:16]} 40. Qb5+ {[%emt 0:00:00]} Ka8 {[%emt 0:00:00]} 41. Be8 {[%emt 0:00:48]} 1-0

[Event "13th Poti Nana Aleksandria Cup"]
[Site "Poti"]
[Date "2018.07.14"]
[Round "2"]
[White "Chkhaidze, Nikoloz"]
[Black "Paichadze, Luka"]
[Result "0-1"]
[ECO "E21"]
[WhiteElo "2337"]
[BlackElo "2564"]
[Annotator "ChessBase"]
[PlyCount "78"]
[EventDate "2018.07.13"]
[EventType "swiss"]
[EventCountry "GEO"]
[SourceTitle "playchess.com"]
[Source "ChessBase"]
[SourceQuality "1"]
[TimeControl "40/5400+30:1800+30"]

1. d4 {[%emt 0:00:00]} Nf6 {[%emt 0:00:00]} 2. c4 {[%emt 0:00:00]} e6 {[%emt 0:00:07]} 3. Nc3 {[%emt 0:00:00]} Bb4 {[%emt 0:00:11]} 4. Nf3 {[%emt 0:00:00]} b6 {[%emt 0:00:42]} 5. Bg5 {[%emt 0:00:00]} Bb7 {[%emt 0:00:16]} 6. e3 {[%emt 0:00:00]} h6 {[%emt 0:05:14]} 7. Bh4 {[%emt 0:00:01]} Be7 {[%emt 0:00:43]} 8. Bd3 {[%emt 0:02:23]} d5 {[%emt 0:01:32]} 9. cxd5 {[%emt 0:02:59]} Nxd5 {[%emt 0:00:34]} 10. Bxe7 {[%emt 0:00:28]} Qxe7 {[%emt 0:03:51]} 11. Nxd5 {[%emt 0:12:32]} Bxd5 {[%emt 0:00:58]} 12. O-O {[%emt 0:01:02]} O-O {[%emt 0:00:17]} 13. Qe2 {[%emt 0:01:29]} Nd7 {[%emt 0:02:14]} 14. e4 {[%emt 0:01:03]} Bb7 {[%emt 0:00:07]} 15. Ba6 {[%emt 0:00:20]} Bxa6 {[%emt 0:00:25]} 16. Qxa6 {[%emt 0:00:05]} c5 {[%emt 0:01:02]} 17. Rfd1 {[%emt 0:04:31]} Nf6 {[%emt 0:02:09]} 18. Qe2 {[%emt 0:00:26]} Rac8 {[%emt 0:02:13]} 19. h3 {[%emt 0:06:03]} Rfd8 {[%emt 0:18:03]} 20. Rac1 {[%emt 0:05:11]} cxd4 {[%emt 0:02:41]} 21. Rxc8 {[%emt 0:00:08]} Rxc8 {[%emt 0:00:04]} 22. Rxd4 {[%emt 0:07:17]} Rc1+ {[%emt 0:01:33]} 23. Kh2 {[%emt 0:00:40]} Qc7+ {[%emt 0:00:25]} 24. e5 {[%emt 0:11:16]} Nd5 {[%emt 0:00:06]} 25. Rd2 {[%emt 0:00:49]} Rc5 {[%emt 0:13:32]} 26. a3 {[%emt 0:08:31]} a5 {[%emt 0:01:45]} 27. g3 {[%emt 0:04:59]} b5 {[%emt 0:03:01]} 28. Nd4 {[%emt 0:05:45]} b4 {[%emt 0:05:44]} 29. axb4 {[%emt 0:00:16]} Nxb4 {[%emt 0:00:59]} 30. f4 {[%emt 0:06:26]} g6 {[%emt 0:07:04]} 31. Nb5 {[%emt 0:09:36]} Qb6 {[%emt 0:10:29]} 32. Nc3 {[%emt 0:00:16]} Rc8 {[%emt 0:02:57]} 33. Kg2 {[%emt 0:06:26]} Rd8 {[%emt 0:03:49]} 34. Rxd8+ {[%emt 0:01:25]} Qxd8 {[%emt 0:00:04]} 35. h4 {[%emt 0:01:33]} h5 {[%emt 0:02:04]} 36. Kh3 {[%emt 0:00:40]} Nd3 {[%emt 0:02:15]} 37. Ne4 {[%emt 0:00:24]} Qd4 {[%emt 0:00:15]} 38. Nf6+ {[%emt 0:01:53]} Kg7 {[%emt 0:00:08]} 39. b3 {[%emt 0:00:34]} Qg1 0-1

[Event "13th Poti Nana Aleksandria Cup"]
[Site "Poti"]
[Date "2018.07.14"]
[Round "2"]
[White "Aliyev, Ravan"]
[Black "Nikulina, Alena"]
[Result "1-0"]
[ECO "A85"]
[WhiteElo "2324"]
[BlackElo "1959"]
[Annotator "NA"]
[PlyCount "57"]
[EventDate "2018.07.13"]
[EventType "swiss"]
[EventCountry "GEO"]
[SourceTitle "playchess.com"]
[Source "ChessBase"]
[SourceQuality "1"]
[TimeControl "40/5400+30:1800+30"]

1. d4 {[%emt 0:00:00]} f5 {[%emt 0:10:47]} 2. c4 {[%emt 0:00:00]} Nf6 {[%emt 0:00:27]} 3. Nc3 {[%emt 0:00:04]} e6 {[%emt 0:01:00]} 4. e3 {[%emt 0:00:16]} b6 {[%emt 0:05:53]} 5. Bd3 {[%emt 0:01:30]} Bb7 {[%emt 0:00:08]} 6. f3 {[%emt 0:00:09]} Bb4 {[%emt 0:05:32]} 7. Nge2 {[%emt 0:00:27]} O-O {[%emt 0:00:20] LiveBook: 15 Games} 8. O-O {[%emt 0:00:42]} d5 {[%emt 0:02:49]} 9. Qc2 {[%emt 0:01:47]} g6 {[%emt 0:06:44]} 10. a3 {[%emt 0:03:13]} Be7 {[%emt 0:09:25]} 11. b4 {[%emt 0:06:48]} c6 {[%emt 0:05:54]} 12. Bd2 {[%emt 0:03:58]} Nbd7 {[%emt 0:00:47]} (12... Re8 $16 {war einen Versuch wert.}) 13. Nf4 {[%emt 0:01:01]} Kf7 {[%emt 0:01:52]} 14. e4 $18 {[%emt 0:02:22]} Rg8 {[%emt 0:13:35]} 15. Rae1 {[%emt 0:06:37]} Nf8 {[%emt 0:01:48]} 16. exd5 {[%emt 0:00:44]} cxd5 {[%emt 0:02:26]} 17. cxd5 {[%emt 0:03:38]} Nxd5 {[%emt 0:01:35]} 18. Ncxd5 {[%emt 0:03:54]} exd5 {[%emt 0:04:51]} 19. Qb3 {[%emt 0:06:33]} Bf6 {[%emt 0:03:33]} 20. Be3 {[%emt 0:01:16]} Qd6 {[%emt 0:01:48]} 21. Bb1 {[%emt 0:02:58]} Bxd4 {[%emt 0:08:48]} 22. Bxd4 {[%emt 0:01:00]} Qxf4 {[%emt 0:00:10]} 23. Be5 {[%emt 0:02:11]} Qc4 {[%emt 0:01:54]} 24. Qe3 {[%emt 0:01:04]} Ne6 {[%emt 0:04:41]} 25. Qh6 {[%emt 0:01:20]} Rac8 {[%emt 0:03:03]} 26. Bxf5 {[%emt 0:01:31]} Rc6 {[%emt 0:02:28]} 27. Bxe6+ {[%emt 0:01:41]} Rxe6 {[%emt 0:00:38]} 28. Qxh7+ {[%emt 0:00:08]} Kf8 {[%emt 0:00:11]} 29. Bd6+ {[%emt 0:00:07]} 1-0

[Event "13th Poti Nana Aleksandria Cup"]
[Site "Poti"]
[Date "2018.07.14"]
[Round "2"]
[White "Mammadov, Sadig"]
[Black "Janiashvili, Mariami"]
[Result "0-1"]
[ECO "C10"]
[WhiteElo "2312"]
[BlackElo "1988"]
[Annotator "NA"]
[PlyCount "116"]
[EventDate "2018.07.13"]
[EventType "swiss"]
[EventCountry "GEO"]
[SourceTitle "playchess.com"]
[Source "ChessBase"]
[SourceQuality "1"]
[TimeControl "40/5400+30:1800+30"]

1. e4 {[%emt 0:00:00]} e6 {[%emt 0:00:00]} 2. d4 {[%emt 0:00:00]} d5 {[%emt 0:00:00]} 3. Nd2 {[%emt 0:00:00]} dxe4 {[%emt 0:00:00]} 4. Nxe4 {[%emt 0:00:00]} Nd7 {[%emt 0:00:00]} 5. Nf3 {[%emt 0:00:00]} Ngf6 {[%emt 0:00:00]} 6. Bd3 {[%emt 0:00:40]} Nxe4 {[%emt 0:00:14]} 7. Bxe4 {[%emt 0:00:01]} Nf6 {[%emt 0:00:12]} 8. Bd3 {[%emt 0:00:02]} Be7 {[%emt 0:00:30]} 9. Qe2 {[%emt 0:00:14]} O-O {[%emt 0:00:19]} 10. O-O {[%emt 0:00:53]} b6 {[%emt 0:00:48]} 11. Bg5 {[%emt 0:06:06]} Bb7 {[%emt 0:00:17]} 12. Rad1 {[%emt 0:01:00]} h6 {[%emt 0:02:16]} 13. Bc1 {[%emt 0:03:58] C10: French with 3 Nc3: Unusual Black 3rd moves and 3...dxe4} (13. Bxf6 Bxf6 14. Be4 Bxe4 15. Qxe4 Qd6 16. Rd3 Rfd8 17. Rfd1 c6 18. Ne5 Rac8 19. Ng4 Bg5 20. Qe2 c5 21. dxc5 Qxc5 22. Rxd8+ Rxd8 23. Rxd8+ Bxd8 {½-½ (49) Takacs,B (2354)-Chernyshov,K (2530) Heviz 2013}) 13... Qd5 {[%emt 0:01:19] LiveBook: 7 Partien} 14. c4 {[%emt 0:03:16]} Qh5 {[%emt 0:00:43]} 15. Ne5 {[%emt 0:00:26]} Qxe2 {[%emt 0:02:12]} 16. Bxe2 {[%emt 0:00:02]} c5 {[%emt 0:03:07]} 17. Be3 {[%emt 0:08:10]} cxd4 {[%emt 0:00:17]} 18. Bxd4 {[%emt 0:00:01]} Rfd8 {[%emt 0:00:34]} 19. Bf3 $146 {[%emt 0:03:06]} ({Predecessor:} 19. Be3 Rac8 20. Rxd8+ Rxd8 21. Rd1 Rxd1+ 22. Bxd1 Bd6 23. Bd4 Kf8 24. Ba4 Ke7 25. h3 Ne4 {½-½ (24) Koval,A (2053)-Mnich,J (2009) Slovakia 2018}) 19... Bxf3 {[%emt 0:00:11]} 20. Nxf3 {[%emt 0:00:01]} Rac8 {[%emt 0:00:46]} 21. b3 {[%emt 0:02:58]} Bc5 {[%emt 0:05:02]} 22. Bxc5 {[%emt 0:01:24]} bxc5 {[%emt 0:00:30]} 23. Rfe1 {[%emt 0:02:58]} Kf8 {[%emt 0:00:35]} 24. Kf1 {[%emt 0:04:37]} a5 {[%emt 0:07:37]} 25. Ne5 {[%emt 0:00:11]} a4 {[%emt 0:01:28]} 26. bxa4 {[%emt 0:03:01]} Rxd1 {[%emt 0:07:18]} 27. Rxd1 {[%emt 0:00:06]} Ra8 {[%emt 0:00:12]} 28. Rb1 {[%emt 0:04:29]} Ne4 {[%emt 0:10:32]} 29. Rb7 {[%emt 0:04:41]} Rxa4 {[%emt 0:00:50]} 30. Rxf7+ {[%emt 0:02:33]} Kg8 {[%emt 0:00:01]} 31. Rf4 {[%emt 0:10:52]} Nd2+ {[%emt 0:03:27]} 32. Kg1 {[%emt 0:00:07]} Rxa2 {[%emt 0:01:41]} 33. h4 {[%emt 0:00:03]} Ra1+ {[%emt 0:07:32]} 34. Kh2 {[%emt 0:00:01]} Re1 {[%emt 0:00:11]} 35. Ng6 {[%emt 0:01:51]} h5 {[%emt 0:00:33]} 36. Rf8+ {[%emt 0:03:46]} Kh7 {[%emt 0:00:01]} 37. Nf4 {[%emt 0:00:01]} Re4 {[%emt 0:08:11]} 38. g3 {[%emt 0:02:05]} Nxc4 {[%emt 0:01:34]} 39. Rc8 {[%emt 0:02:18]} Re5 {[%emt 0:07:01]} 40. Rc6 {[%emt 0:00:00]} Na5 {[%emt 0:00:00]} 41. Ra6 $11 {[%emt 0:03:36]} c4 {[%emt 0:03:25]} 42. Nxe6 {[%emt 0:00:14]} c3 {[%emt 0:01:02]} 43. Nd4 {[%emt 0:03:40]} Rd5 {[%emt 0:01:11]} 44. Kg2 {[%emt 0:00:40]} Rxd4 {[%emt 0:05:48]} 45. Rxa5 {[%emt 0:00:01]} Rc4 {[%emt 0:00:06]} 46. Ra1 {[%emt 0:00:05]} c2 47. Rc1 Kg6 {[%emt 0:00:39]} 48. f3 {[%emt 0:01:48]} Kf5 {[%emt 0:00:38]} 49. Kf2 {[%emt 0:00:01]} Rc3 {[%emt 0:01:37]} 50. Ke2 {[%emt 0:00:27]} g6 {[%emt 0:02:16]} 51. Kf2 {[%emt 0:00:54]} Ke5 {[%emt 0:00:39]} 52. Ke2 {[%emt 0:00:05]} Kd4 {[%emt 0:03:08]} 53. g4 {[%emt 0:00:10]} hxg4 {[%emt 0:00:59]} 54. fxg4 {[%emt 0:00:02]} Kc4 {[%emt 0:00:10]} 55. Kd2 {[%emt 0:03:17]} Kb3 {[%emt 0:00:15]} 56. h5 {[%emt 0:02:13]} gxh5 {[%emt 0:00:04]} 57. gxh5 {[%emt 0:00:01]} Rh3 {[%emt 0:01:12]} 58. Rg1 {[%emt 0:00:01]} Kb2 {[%emt 0:00:29]} 0-1